[Event "*** Titled Tuesday Blitz"]
[Site "Chess.com"]
[Date "2020.04.21"]
[Round "3"]
[White "rpragchess"]
[Black "SloLev"]
[Result "1-0"]
[WhiteElo "2755"]
[BlackElo "2525"]
[TimeControl "180+1"]
[EndTime "10:27:58 PDT"]
[Termination "rpragchess won by resignation"]

1. Nf3 {[%clk 0:03:00.9]} 1... d5 {[%clk 0:02:59.9]} 2. g3 {[%clk 0:03:00.5]}
2... Bf5 {[%clk 0:02:57]} 3. Bg2 {[%clk 0:02:56.7]} 3... e6 {[%clk 0:02:56.9]}
4. O-O {[%clk 0:02:56]} 4... Nc6 {[%clk 0:02:57.1]} 5. d3 {[%clk 0:02:47.1]}
5... Nf6 {[%clk 0:02:55.3]} 6. Nbd2 {[%clk 0:02:45]} 6... Be7 {[%clk 0:02:54.3]}
7. c3 {[%clk 0:02:40.4]} 7... O-O {[%clk 0:02:51.3]} 8. Nh4 {[%clk 0:02:38.4]}
8... Bg6 {[%clk 0:02:42.7]} 9. Nxg6 {[%clk 0:02:35]} 9... hxg6 {[%clk
0:02:43.6]} 10. Qc2 {[%clk 0:02:34]} 10... Qd7 {[%clk 0:02:37.7]} 11. e4 {[%clk
0:02:33]} 11... dxe4 {[%clk 0:02:37.8]} 12. Nxe4 {[%clk 0:02:29.1]} 12... Rad8
{[%clk 0:02:33.4]} 13. Nxf6+ {[%clk 0:02:23.3]} 13... Bxf6 {[%clk 0:02:32.4]}
14. d4 {[%clk 0:02:23.5]} 14... b6 {[%clk 0:02:24.9]} 15. Bf4 {[%clk 0:02:15]}
15... Ne7 {[%clk 0:02:23.9]} 16. Rad1 {[%clk 0:02:13.3]} 16... Nd5 {[%clk
0:02:23.4]} 17. Bc1 {[%clk 0:02:13.4]} 17... b5 {[%clk 0:02:17]} 18. Rfe1 {[%clk
0:02:10]} 18... Qd6 {[%clk 0:02:13.5]} 19. a4 {[%clk 0:02:01.5]} 19... a6 {[%clk
0:02:12.9]} 20. h4 {[%clk 0:01:35]} 20... Nb6 {[%clk 0:02:05.2]} 21. axb5 {[%clk
0:01:32.5]} 21... axb5 {[%clk 0:02:05]} 22. Bf4 {[%clk 0:01:32.7]} 22... Qd7
{[%clk 0:01:57.3]} 23. Qb3 {[%clk 0:01:29.9]} 23... Nd5 {[%clk 0:01:56.6]} 24.
Be5 {[%clk 0:01:26.6]} 24... Bxe5 {[%clk 0:01:52.9]} 25. Rxe5 {[%clk 0:01:27.5]}
25... c6 {[%clk 0:01:53.4]} 26. Rde1 {[%clk 0:01:24.6]} 26... Qa7 {[%clk
0:01:47.2]} 27. Qd1 {[%clk 0:01:22.3]} 27... c5 {[%clk 0:01:27.1]} 28. Bxd5
{[%clk 0:01:18.7]} 28... Rxd5 {[%clk 0:01:23]} 29. Rxd5 {[%clk 0:01:16.3]} 29...
exd5 {[%clk 0:01:23.9]} 30. Re5 {[%clk 0:00:51.9]} 30... Rd8 {[%clk 0:01:13.7]}
31. h5 {[%clk 0:00:50.2]} 31... gxh5 {[%clk 0:00:52.3]} 32. Rxh5 {[%clk
0:00:50.3]} 32... cxd4 {[%clk 0:00:50.8]} 33. cxd4 {[%clk 0:00:50.1]} 33... g6
{[%clk 0:00:45.6]} 34. Rh4 {[%clk 0:00:49.2]} 34... Re8 {[%clk 0:00:38.6]} 35.
Qc1 {[%clk 0:00:35.2]} 35... Re4 {[%clk 0:00:34.3]} 36. Qc8+ {[%clk 0:00:34]}
1-0

[Event "*** Titled Tuesday Blitz"]
[Site "Chess.com"]
[Date "2020.04.21"]
[Round "3"]
[White "Olga_Zhuravleva"]
[Black "mortngabriel"]
[Result "0-1"]
[WhiteElo "2213"]
[BlackElo "2448"]
[TimeControl "180+1"]
[EndTime "10:27:59 PDT"]
[Termination "mortngabriel won by resignation"]

1. e4 {[%clk 0:03:00.9]} 1... c5 {[%clk 0:02:59.4]} 2. Nf3 {[%clk 0:03:01]} 2...
d6 {[%clk 0:02:59.3]} 3. d4 {[%clk 0:03:01.2]} 3... cxd4 {[%clk 0:03:00.2]} 4.
Nxd4 {[%clk 0:03:01.7]} 4... Nf6 {[%clk 0:03:01.1]} 5. Nc3 {[%clk 0:03:01]} 5...
g6 {[%clk 0:03:00.9]} 6. Be2 {[%clk 0:02:58.9]} 6... Bg7 {[%clk 0:03:01]} 7. O-O
{[%clk 0:02:59.6]} 7... O-O {[%clk 0:03:01.4]} 8. Nb3 {[%clk 0:02:59.4]} 8... a5
{[%clk 0:03:00.9]} 9. a4 {[%clk 0:02:58.3]} 9... Be6 {[%clk 0:03:01.2]} 10. Re1
{[%clk 0:02:58.7]} 10... Nc6 {[%clk 0:02:59.1]} 11. Bf1 {[%clk 0:02:58.4]} 11...
Qc8 {[%clk 0:02:47.2]} 12. Bg5 {[%clk 0:02:56.3]} 12... Rd8 {[%clk 0:02:47]} 13.
Nd5 {[%clk 0:02:54.3]} 13... Bxd5 {[%clk 0:02:27.5]} 14. exd5 {[%clk 0:02:53.1]}
14... Nb4 {[%clk 0:02:28.4]} 15. c4 {[%clk 0:02:45.7]} 15... Re8 {[%clk
0:02:21.3]} 16. Nd4 {[%clk 0:02:36.1]} 16... Na6 {[%clk 0:02:15.2]} 17. b3
{[%clk 0:02:34.4]} 17... Nc5 {[%clk 0:02:14.8]} 18. Rb1 {[%clk 0:02:34.9]} 18...
Nfe4 {[%clk 0:02:08.4]} 19. Bh4 {[%clk 0:02:18.7]} 19... Nc3 {[%clk 0:02:07.7]}
20. Qd2 {[%clk 0:02:17.2]} 20... Nxb1 {[%clk 0:02:03.2]} 21. Rxb1 {[%clk
0:02:18.1]} 21... Qg4 {[%clk 0:01:54.2]} 22. Nf3 {[%clk 0:02:14]} 22... Qf5
{[%clk 0:01:34.8]} 23. Qd1 {[%clk 0:02:05.8]} 23... e6 {[%clk 0:01:25.2]} 24.
dxe6 {[%clk 0:02:03.7]} 24... Rxe6 {[%clk 0:01:24.3]} 25. Rc1 {[%clk 0:01:59.6]}
25... Rae8 {[%clk 0:01:10.8]} 26. h3 {[%clk 0:01:56.7]} 26... b6 {[%clk
0:01:08.3]} 27. Bg3 {[%clk 0:01:45.1]} 27... Ne4 {[%clk 0:01:07.9]} 28. Bh2
{[%clk 0:01:37.7]} 28... Qc5 {[%clk 0:01:07.3]} 29. Qc2 {[%clk 0:01:32.9]} 29...
h6 {[%clk 0:01:03.2]} 30. Bd3 {[%clk 0:01:31.9]} 30... Ng5 {[%clk 0:01:00.4]}
31. Nxg5 {[%clk 0:01:25]} 31... Re1+ {[%clk 0:00:59.8]} 32. Bf1 {[%clk
0:01:20.8]} 32... hxg5 {[%clk 0:00:59.4]} 33. Rxe1 {[%clk 0:01:10.9]} 33... Rxe1
{[%clk 0:00:58.6]} 34. Qd2 {[%clk 0:01:11.4]} 34... Re6 {[%clk 0:00:51.5]} 35.
Bg3 {[%clk 0:01:07.9]} 35... Qd4 {[%clk 0:00:46.7]} 36. Qxg5 {[%clk 0:01:05.9]}
36... Re1 {[%clk 0:00:36.5]} 37. Qd8+ {[%clk 0:01:04.2]} 37... Bf8 {[%clk
0:00:32.3]} 38. Bh4 {[%clk 0:00:43.3]} 38... Rxf1+ {[%clk 0:00:31.5]} 0-1

[Event "*** Titled Tuesday Blitz"]
[Site "Chess.com"]
[Date "2020.04.21"]
[Round "3"]
[White "KinKaiser"]
[Black "Shota_Azaladze"]
[Result "0-1"]
[WhiteElo "2437"]
[BlackElo "2746"]
[TimeControl "180+1"]
[EndTime "10:28:03 PDT"]
[Termination "Shota_Azaladze won on time"]

1. d4 {[%clk 0:03:00.9]} 1... Nf6 {[%clk 0:02:59.4]} 2. Nf3 {[%clk 0:02:57.8]}
2... g6 {[%clk 0:02:58.5]} 3. Bf4 {[%clk 0:02:57.4]} 3... Bg7 {[%clk 0:02:58.8]}
4. e3 {[%clk 0:02:57.7]} 4... O-O {[%clk 0:02:59]} 5. h3 {[%clk 0:02:57.9]} 5...
d6 {[%clk 0:02:58.7]} 6. Be2 {[%clk 0:02:56.8]} 6... Nc6 {[%clk 0:02:59.2]} 7.
Bh2 {[%clk 0:02:56.1]} 7... Nd7 {[%clk 0:02:59]} 8. c4 {[%clk 0:02:55.1]} 8...
e5 {[%clk 0:02:59.4]} 9. Nc3 {[%clk 0:02:54.5]} 9... exd4 {[%clk 0:02:56.6]} 10.
exd4 {[%clk 0:02:54.3]} 10... Re8 {[%clk 0:02:55.8]} 11. O-O {[%clk 0:02:52]}
11... Nf6 {[%clk 0:02:55.8]} 12. Re1 {[%clk 0:02:37.2]} 12... Bf5 {[%clk
0:02:54.4]} 13. c5 {[%clk 0:02:25.9]} 13... Ne4 {[%clk 0:02:51]} 14. cxd6 {[%clk
0:02:12.2]} 14... cxd6 {[%clk 0:02:40.3]} 15. Bc4 {[%clk 0:02:06.9]} 15... Nxc3
{[%clk 0:02:24.6]} 16. Rxe8+ {[%clk 0:01:57.5]} 16... Qxe8 {[%clk 0:02:25.5]}
17. bxc3 {[%clk 0:01:57]} 17... Qd7 {[%clk 0:02:25.9]} 18. g4 {[%clk 0:01:33.4]}
18... Na5 {[%clk 0:02:08.7]} 19. Bb3 {[%clk 0:01:11.6]} 19... Nxb3 {[%clk
0:01:13.6]} 20. axb3 {[%clk 0:01:07.2]} 20... Be4 {[%clk 0:01:11.9]} 21. Ng5
{[%clk 0:00:56.7]} 21... Bc6 {[%clk 0:01:02.1]} 22. d5 {[%clk 0:00:48]} 22...
Bb5 {[%clk 0:01:01.9]} 23. Qf3 {[%clk 0:00:43.4]} 23... Re8 {[%clk 0:00:36.7]}
24. Rd1 {[%clk 0:00:33.3]} 24... Be2 {[%clk 0:00:30.7]} 0-1

[Event "*** Titled Tuesday Blitz"]
[Site "Chess.com"]
[Date "2020.04.21"]
[Round "3"]
[White "Steven_Rojas"]
[Black "dukicz123"]
[Result "1-0"]
[WhiteElo "2418"]
[BlackElo "2591"]
[TimeControl "180+1"]
[EndTime "10:28:04 PDT"]
[Termination "Steven_Rojas won by resignation"]

1. c4 {[%clk 0:03:00.9]} 1... g6 {[%clk 0:02:59.5]} 2. Nc3 {[%clk 0:02:59.1]}
2... Bg7 {[%clk 0:02:59.9]} 3. g3 {[%clk 0:02:59.6]} 3... d6 {[%clk 0:02:59.7]}
4. Bg2 {[%clk 0:02:59.8]} 4... Nc6 {[%clk 0:03:00.4]} 5. Nf3 {[%clk 0:02:57]}
5... Nf6 {[%clk 0:03:00]} 6. d4 {[%clk 0:02:56.9]} 6... O-O {[%clk 0:02:59.7]}
7. O-O {[%clk 0:02:57.4]} 7... a6 {[%clk 0:02:59.7]} 8. Qd3 {[%clk 0:02:56.3]}
8... e5 {[%clk 0:02:56.8]} 9. Be3 {[%clk 0:02:47.6]} 9... exd4 {[%clk
0:02:17.9]} 10. Bxd4 {[%clk 0:02:47.8]} 10... Nxd4 {[%clk 0:02:17.3]} 11. Qxd4
{[%clk 0:02:47.8]} 11... Re8 {[%clk 0:02:13.9]} 12. Qd2 {[%clk 0:02:41.3]} 12...
Bf5 {[%clk 0:02:06.7]} 13. Nd4 {[%clk 0:02:41.3]} 13... Ne4 {[%clk 0:02:01.4]}
14. Nxe4 {[%clk 0:02:30.2]} 14... Bxe4 {[%clk 0:02:01.5]} 15. f3 {[%clk
0:02:30.7]} 15... c5 {[%clk 0:01:35.3]} 16. Nb3 {[%clk 0:02:14.1]} 16... Bc6
{[%clk 0:01:33.4]} 17. e4 {[%clk 0:02:12.6]} 17... b5 {[%clk 0:01:29.6]} 18. Na5
{[%clk 0:02:00.5]} 18... Bd4+ {[%clk 0:01:22.5]} 19. Kh1 {[%clk 0:02:00.1]}
19... Bd7 {[%clk 0:00:51.2]} 20. Nb3 {[%clk 0:01:59]} 20... Bg7 {[%clk 0:00:31]}
21. Qxd6 {[%clk 0:01:56.5]} 21... bxc4 {[%clk 0:00:26.5]} 22. Nxc5 {[%clk
0:01:56.3]} 22... Bb5 {[%clk 0:00:23.1]} 23. Rad1 {[%clk 0:01:45.6]} 23... Bxb2
{[%clk 0:00:20.1]} 24. a4 {[%clk 0:01:45.2]} 24... Qxd6 {[%clk 0:00:17.2]} 25.
Rxd6 {[%clk 0:01:46.1]} 25... Ba3 {[%clk 0:00:17.9]} 26. axb5 {[%clk 0:01:42.4]}
26... Bxc5 {[%clk 0:00:18]} 27. Rc6 {[%clk 0:01:43.1]} 27... Rec8 {[%clk
0:00:18.5]} 28. Rxc8+ {[%clk 0:01:42.5]} 28... Rxc8 {[%clk 0:00:19.4]} 29. bxa6
{[%clk 0:01:43.1]} 29... Ra8 {[%clk 0:00:19.7]} 30. Rc1 {[%clk 0:01:39.5]} 30...
Rxa6 {[%clk 0:00:18.5]} 31. Bf1 {[%clk 0:01:39.9]} 31... Ra3 {[%clk 0:00:14.5]}
32. Kg2 {[%clk 0:01:35.8]} 32... c3 {[%clk 0:00:13.5]} 33. Rc2 {[%clk 0:01:34]}
33... Bd4 {[%clk 0:00:13.7]} 34. Bc4 {[%clk 0:01:33.4]} 34... Kf8 {[%clk
0:00:13.6]} 35. f4 {[%clk 0:01:32.9]} 35... f6 {[%clk 0:00:13.9]} 36. Kf3 {[%clk
0:01:29.6]} 36... Ke7 {[%clk 0:00:14.5]} 37. Ke2 {[%clk 0:01:22.7]} 37... Kd6
{[%clk 0:00:14.9]} 38. Kd3 {[%clk 0:01:23.1]} 38... Kc5 {[%clk 0:00:15.2]} 39.
h4 {[%clk 0:01:21.9]} 39... Ra4 {[%clk 0:00:15.5]} 40. Bg8 {[%clk 0:01:21.5]}
40... h6 {[%clk 0:00:14.2]} 41. h5 {[%clk 0:01:09.5]} 41... g5 {[%clk
0:00:10.5]} 42. fxg5 {[%clk 0:01:10.4]} 42... fxg5 {[%clk 0:00:11.2]} 43. Rc1
{[%clk 0:01:11]} 43... Ra2 {[%clk 0:00:10.6]} 44. Bxa2 {[%clk 0:01:10.1]} 1-0

[Event "*** Titled Tuesday Blitz"]
[Site "Chess.com"]
[Date "2020.04.21"]
[Round "3"]
[White "Vincent_Vega95"]
[Black "talaicito"]
[Result "1-0"]
[WhiteElo "2704"]
[BlackElo "2278"]
[TimeControl "180+1"]
[EndTime "10:28:04 PDT"]
[Termination "Vincent_Vega95 won on time"]

1. Nf3 {[%clk 0:03:00.9]} 1... e6 {[%clk 0:02:59.8]} 2. c4 {[%clk 0:03:00.6]}
2... f5 {[%clk 0:03:00]} 3. g3 {[%clk 0:02:58.3]} 3... Nf6 {[%clk 0:03:00.5]} 4.
Bg2 {[%clk 0:02:58.6]} 4... Be7 {[%clk 0:03:01.2]} 5. O-O {[%clk 0:02:58.6]}
5... O-O {[%clk 0:03:01.8]} 6. Nc3 {[%clk 0:02:57]} 6... d6 {[%clk 0:03:02.1]}
7. d3 {[%clk 0:02:55.7]} 7... e5 {[%clk 0:03:01.5]} 8. e4 {[%clk 0:02:55.8]}
8... Kh8 {[%clk 0:02:58.6]} 9. Re1 {[%clk 0:02:43.3]} 9... Nc6 {[%clk
0:02:36.2]} 10. Nd5 {[%clk 0:02:42.1]} 10... Be6 {[%clk 0:02:19.9]} 11. Ng5
{[%clk 0:02:36.1]} 11... Bd7 {[%clk 0:02:00.1]} 12. f4 {[%clk 0:02:34]} 12...
Nd4 {[%clk 0:01:46]} 13. Nf3 {[%clk 0:02:25.9]} 13... Nxd5 {[%clk 0:01:34.5]}
14. cxd5 {[%clk 0:02:21.1]} 14... Nxf3+ {[%clk 0:01:28.4]} 15. Qxf3 {[%clk
0:02:19.9]} 15... Qe8 {[%clk 0:01:19]} 16. Be3 {[%clk 0:02:15.3]} 16... c5
{[%clk 0:01:05.2]} 17. Qe2 {[%clk 0:01:55.3]} 17... Qg6 {[%clk 0:01:03.7]} 18.
Bh3 {[%clk 0:01:48.6]} 18... Rad8 {[%clk 0:00:53.5]} 19. Qg2 {[%clk 0:01:45.6]}
19... h6 {[%clk 0:00:44.7]} 20. Rf1 {[%clk 0:01:40.8]} 20... fxe4 {[%clk
0:00:37.4]} 21. Bxd7 {[%clk 0:01:39.2]} 21... Rxd7 {[%clk 0:00:38.3]} 22. dxe4
{[%clk 0:01:38.5]} 22... exf4 {[%clk 0:00:33.3]} 23. gxf4 {[%clk 0:01:38.6]}
23... Qxg2+ {[%clk 0:00:32]} 24. Kxg2 {[%clk 0:01:39.5]} 24... Re8 {[%clk
0:00:30.1]} 25. Kf3 {[%clk 0:01:25.7]} 25... Bf6 {[%clk 0:00:30.1]} 26. Bc1
{[%clk 0:01:23.7]} 26... Rde7 {[%clk 0:00:29.4]} 27. Re1 {[%clk 0:01:24.1]}
27... Bd4 {[%clk 0:00:28.4]} 28. Rb1 {[%clk 0:01:23.4]} 28... b5 {[%clk
0:00:26.7]} 29. b3 {[%clk 0:01:23.5]} 29... a5 {[%clk 0:00:26]} 30. Bd2 {[%clk
0:01:23.5]} 30... b4 {[%clk 0:00:25.4]} 31. Re2 {[%clk 0:01:21.6]} 31... a4
{[%clk 0:00:25.5]} 32. Bc1 {[%clk 0:01:19.3]} 32... Ra8 {[%clk 0:00:25.2]} 33.
Bb2 {[%clk 0:01:19.3]} 33... Bxb2 {[%clk 0:00:21.3]} 34. Rbxb2 {[%clk
0:01:19.4]} 34... axb3 {[%clk 0:00:20.5]} 35. axb3 {[%clk 0:01:20.3]} 35... Ra1
{[%clk 0:00:20.1]} 36. e5 {[%clk 0:01:16.7]} 36... Rf1+ {[%clk 0:00:19.7]} 37.
Ke4 {[%clk 0:01:13]} 37... dxe5 {[%clk 0:00:17.5]} 38. fxe5 {[%clk 0:01:13.1]}
38... Ref7 {[%clk 0:00:18]} 39. d6 {[%clk 0:01:10]} 39... Rd1 {[%clk 0:00:10.9]}
40. Rbd2 {[%clk 0:01:09.3]} 40... Rb1 {[%clk 0:00:07.6]} 41. Re3 {[%clk
0:01:08.4]} 41... Rbf1 {[%clk 0:00:04.7]} 42. Kd5 {[%clk 0:01:03.8]} 1-0

[Event "*** Titled Tuesday Blitz"]
[Site "Chess.com"]
[Date "2020.04.21"]
[Round "3"]
[White "evgenyermolaev"]
[Black "vugarrasulov"]
[Result "0-1"]
[WhiteElo "2471"]
[BlackElo "2725"]
[TimeControl "180+1"]
[EndTime "10:28:05 PDT"]
[Termination "vugarrasulov won by resignation"]

1. e4 {[%clk 0:03:00.9]} 1... c5 {[%clk 0:02:59.2]} 2. Nf3 {[%clk 0:02:58.9]}
2... d6 {[%clk 0:02:59.7]} 3. d4 {[%clk 0:02:58.5]} 3... cxd4 {[%clk 0:03:00.6]}
4. Nxd4 {[%clk 0:02:58.8]} 4... Nf6 {[%clk 0:03:01.1]} 5. Nc3 {[%clk 0:02:59]}
5... a6 {[%clk 0:03:01.7]} 6. Be3 {[%clk 0:02:58.5]} 6... e5 {[%clk 0:03:01.6]}
7. Nb3 {[%clk 0:02:58.7]} 7... Be7 {[%clk 0:03:02.1]} 8. Qd2 {[%clk 0:02:58.9]}
8... O-O {[%clk 0:03:02.7]} 9. O-O-O {[%clk 0:02:58.7]} 9... Be6 {[%clk
0:03:03.2]} 10. f4 {[%clk 0:02:58.4]} 10... Qc7 {[%clk 0:03:00.6]} 11. f5 {[%clk
0:02:49.1]} 11... Bc4 {[%clk 0:03:00.6]} 12. g4 {[%clk 0:02:48.3]} 12... d5
{[%clk 0:02:47.8]} 13. Nxd5 {[%clk 0:02:17.6]} 13... Bxd5 {[%clk 0:02:43.6]} 14.
exd5 {[%clk 0:02:17.1]} 14... Rd8 {[%clk 0:02:44.1]} 15. Bg2 {[%clk 0:02:06.4]}
15... Nxg4 {[%clk 0:02:42.9]} 16. Rhg1 {[%clk 0:01:50.3]} 16... h6 {[%clk
0:02:22.3]} 17. Kb1 {[%clk 0:01:31.7]} 17... Nxe3 {[%clk 0:02:19.3]} 18. Qxe3
{[%clk 0:01:31.1]} 18... Bg5 {[%clk 0:02:19.9]} 19. Qf2 {[%clk 0:01:19.1]} 19...
Rd6 {[%clk 0:02:04.4]} 20. Nc5 {[%clk 0:00:59.9]} 20... Nd7 {[%clk 0:02:03.7]}
21. Ne4 {[%clk 0:00:57.4]} 21... Rb6 {[%clk 0:02:01.1]} 22. d6 {[%clk
0:00:54.5]} 22... Qd8 {[%clk 0:01:52.1]} 23. Bf3 {[%clk 0:00:33.5]} 23... Rc8
{[%clk 0:01:47]} 24. h4 {[%clk 0:00:29.2]} 24... Bf6 {[%clk 0:01:45.9]} 25. Qg2
{[%clk 0:00:20.7]} 25... Kf8 {[%clk 0:01:43]} 26. Nxf6 {[%clk 0:00:20]} 26...
Qxf6 {[%clk 0:01:43.1]} 27. Be4 {[%clk 0:00:12.9]} 27... Nc5 {[%clk 0:01:42.4]}
28. Rd5 {[%clk 0:00:11.4]} 28... Na4 {[%clk 0:01:40.6]} 29. Ka1 {[%clk
0:00:06.3]} 29... Rd8 {[%clk 0:01:36.6]} 30. b3 {[%clk 0:00:05.6]} 30... Nc3
{[%clk 0:01:36.4]} 31. Rd3 {[%clk 0:00:05.9]} 31... Nxe4 {[%clk 0:01:33.5]} 32.
Qxe4 {[%clk 0:00:06.8]} 32... Rdxd6 {[%clk 0:01:33.8]} 33. Rgd1 {[%clk 0:00:07]}
33... Rxd3 {[%clk 0:01:30.9]} 34. Rxd3 {[%clk 0:00:07.9]} 34... Kg8 {[%clk
0:01:30.4]} 35. Rd7 {[%clk 0:00:07.6]} 35... h5 {[%clk 0:01:22.9]} 36. Rxb7
{[%clk 0:00:06.4]} 36... Rxb7 {[%clk 0:01:23.1]} 37. Qxb7 {[%clk 0:00:07.3]}
37... e4+ {[%clk 0:01:23.1]} 38. Kb1 {[%clk 0:00:07]} 38... Qxf5 {[%clk
0:01:23.6]} 39. Qxa6 {[%clk 0:00:06.3]} 39... e3 {[%clk 0:01:19.7]} 40. Kc1
{[%clk 0:00:04.7]} 40... Qf2 {[%clk 0:01:16.1]} 41. Qc8+ {[%clk 0:00:02.7]}
41... Kh7 {[%clk 0:01:16.6]} 42. Qd7 {[%clk 0:00:02.6]} 42... e2 {[%clk
0:01:14.5]} 0-1

[Event "*** Titled Tuesday Blitz"]
[Site "Chess.com"]
[Date "2020.04.21"]
[Round "3"]
[White "Parhamov"]
[Black "Hanging_pointer"]
[Result "1-0"]
[WhiteElo "3046"]
[BlackElo "2602"]
[TimeControl "180+1"]
[EndTime "10:28:05 PDT"]
[Termination "Parhamov won by resignation"]

1. e4 {[%clk 0:03:00.9]} 1... c6 {[%clk 0:03:00.6]} 2. d4 {[%clk 0:03:00.6]}
2... d5 {[%clk 0:03:00.8]} 3. e5 {[%clk 0:03:00.7]} 3... Bf5 {[%clk 0:03:00.1]}
4. h4 {[%clk 0:02:58.1]} 4... h5 {[%clk 0:02:59.6]} 5. c4 {[%clk 0:02:57.9]}
5... e6 {[%clk 0:02:59.4]} 6. Nc3 {[%clk 0:02:57.2]} 6... Ne7 {[%clk 0:02:58.4]}
7. Bg5 {[%clk 0:02:56.8]} 7... dxc4 {[%clk 0:02:55.2]} 8. Bxc4 {[%clk
0:02:56.8]} 8... Nd7 {[%clk 0:02:51.7]} 9. Nge2 {[%clk 0:02:55.7]} 9... Nb6
{[%clk 0:02:50.5]} 10. Bb3 {[%clk 0:02:55.2]} 10... Qd7 {[%clk 0:02:48.5]} 11.
O-O {[%clk 0:02:53.6]} 11... Ned5 {[%clk 0:02:46.8]} 12. Ng3 {[%clk 0:02:48.9]}
12... Bg6 {[%clk 0:02:43.9]} 13. Nce4 {[%clk 0:02:49.2]} 13... a5 {[%clk
0:02:36.8]} 14. a3 {[%clk 0:02:48.8]} 14... a4 {[%clk 0:02:35.8]} 15. Bc2 {[%clk
0:02:48.5]} 15... Nc4 {[%clk 0:02:28.4]} 16. Rb1 {[%clk 0:02:44.3]} 16... b5
{[%clk 0:02:24.7]} 17. Qf3 {[%clk 0:02:44]} 17... Be7 {[%clk 0:02:19]} 18. Rbc1
{[%clk 0:02:29.7]} 18... Bxg5 {[%clk 0:02:05.8]} 19. Nxg5 {[%clk 0:02:28]} 19...
Bxc2 {[%clk 0:02:00.9]} 20. Rxc2 {[%clk 0:02:27.8]} 20... g6 {[%clk 0:01:55.8]}
21. N3e4 {[%clk 0:02:27.8]} 21... Qe7 {[%clk 0:01:47.4]} 22. Rxc4 {[%clk
0:02:27]} 22... bxc4 {[%clk 0:01:42.6]} 23. Nd6+ {[%clk 0:02:26.9]} 23... Kd7
{[%clk 0:01:43.3]} 24. Nxc4 {[%clk 0:02:26.8]} 24... Rab8 {[%clk 0:01:32.6]} 25.
Rc1 {[%clk 0:02:21.2]} 25... Rb7 {[%clk 0:01:25.2]} 26. Qd1 {[%clk 0:02:18.7]}
26... Ra8 {[%clk 0:01:22.4]} 27. Qc2 {[%clk 0:02:14.5]} 27... c5 {[%clk
0:01:16.2]} 28. Nd6 {[%clk 0:02:14.3]} 28... Rc7 {[%clk 0:01:13.2]} 29. dxc5
{[%clk 0:02:14.5]} 29... Rc6 {[%clk 0:01:08.7]} 30. Qc4 {[%clk 0:02:12.8]} 30...
Ra5 {[%clk 0:01:06.3]} 31. Qd4 {[%clk 0:02:12.2]} 31... Kc7 {[%clk 0:01:00.4]}
32. g3 {[%clk 0:02:11.6]} 32... Kb8 {[%clk 0:00:58.2]} 33. Rc4 {[%clk
0:02:11.6]} 33... Qa7 {[%clk 0:00:56]} 34. Nge4 {[%clk 0:02:09.9]} 34... Ka8
{[%clk 0:00:52.9]} 35. Qd2 {[%clk 0:02:09.8]} 35... Rc7 {[%clk 0:00:50.9]} 36.
c6 {[%clk 0:02:03.7]} 36... Nb6 {[%clk 0:00:48.7]} 37. Rc1 {[%clk 0:01:50.3]}
37... Rxe5 {[%clk 0:00:48.2]} 38. Qf4 {[%clk 0:01:47.7]} 38... Rd5 {[%clk
0:00:43.1]} 39. Ne8 {[%clk 0:01:43]} 39... Re7 {[%clk 0:00:32.9]} 40. N4d6
{[%clk 0:01:43]} 40... Qa5 {[%clk 0:00:30]} 41. c7 {[%clk 0:01:42.9]} 41... Rxe8
{[%clk 0:00:26.6]} 42. Nxe8 {[%clk 0:01:43.1]} 42... Nc8 {[%clk 0:00:25.3]} 43.
Qxf7 {[%clk 0:01:39]} 43... Qd2 {[%clk 0:00:22.7]} 44. Rf1 {[%clk 0:01:39]}
44... Qe2 {[%clk 0:00:21.3]} 45. Qxg6 {[%clk 0:01:38.7]} 45... Kb7 {[%clk
0:00:18.7]} 46. Qg7 {[%clk 0:01:38.7]} 46... Rd1 {[%clk 0:00:16.8]} 47. Rxd1
{[%clk 0:01:36.1]} 47... Qxd1+ {[%clk 0:00:17.7]} 48. Kh2 {[%clk 0:01:35.5]}
48... Qd5 {[%clk 0:00:15.4]} 49. Qc3 {[%clk 0:01:34.1]} 49... Qb5 {[%clk
0:00:12.6]} 50. Ng7 {[%clk 0:01:29.1]} 1-0

[Event "*** Titled Tuesday Blitz"]
[Site "Chess.com"]
[Date "2020.04.21"]
[Round "3"]
[White "algatar2020"]
[Black "kakakz"]
[Result "0-1"]
[WhiteElo "1927"]
[BlackElo "2379"]
[TimeControl "180+1"]
[EndTime "10:28:05 PDT"]
[Termination "kakakz won by checkmate"]

1. d4 {[%clk 0:02:59]} 1... Nf6 {[%clk 0:02:59.4]} 2. Nf3 {[%clk 0:02:58.3]}
2... g6 {[%clk 0:02:59.4]} 3. Bf4 {[%clk 0:02:58]} 3... Bg7 {[%clk 0:02:59.4]}
4. e3 {[%clk 0:02:57.9]} 4... O-O {[%clk 0:02:59.5]} 5. h3 {[%clk 0:02:57.7]}
5... d6 {[%clk 0:02:59.5]} 6. c4 {[%clk 0:02:57.6]} 6... Nbd7 {[%clk 0:02:59.9]}
7. Be2 {[%clk 0:02:56.9]} 7... Qe8 {[%clk 0:02:58]} 8. Nc3 {[%clk 0:02:54.3]}
8... e5 {[%clk 0:02:57.6]} 9. Bh2 {[%clk 0:02:53.7]} 9... Qe7 {[%clk 0:02:53.6]}
10. O-O {[%clk 0:02:50.6]} 10... b6 {[%clk 0:02:49.8]} 11. a4 {[%clk 0:02:49.3]}
11... a5 {[%clk 0:02:18.2]} 12. Nb5 {[%clk 0:02:46.3]} 12... Ne8 {[%clk
0:02:07.8]} 13. Re1 {[%clk 0:02:43.7]} 13... Bb7 {[%clk 0:02:07.1]} 14. Rc1
{[%clk 0:02:38]} 14... f5 {[%clk 0:01:59.9]} 15. Qb3 {[%clk 0:02:34.3]} 15...
Kh8 {[%clk 0:01:58.7]} 16. Bf1 {[%clk 0:02:30.7]} 16... g5 {[%clk 0:01:45.1]}
17. Nd2 {[%clk 0:02:15.9]} 17... g4 {[%clk 0:01:24.5]} 18. hxg4 {[%clk
0:02:15.2]} 18... fxg4 {[%clk 0:01:25.4]} 19. Bg3 {[%clk 0:02:15.1]} 19... h5
{[%clk 0:01:24.4]} 20. Qc2 {[%clk 0:02:05.9]} 20... h4 {[%clk 0:01:24.1]} 21.
Bh2 {[%clk 0:02:05.7]} 21... e4 {[%clk 0:00:56.9]} 22. Bf4 {[%clk 0:01:58.3]}
22... Rc8 {[%clk 0:00:41.6]} 23. Nb3 {[%clk 0:01:53.9]} 23... c6 {[%clk
0:00:38.3]} 24. Nc3 {[%clk 0:01:53.3]} 24... Nef6 {[%clk 0:00:36.3]} 25. c5
{[%clk 0:01:51.4]} 25... Nh5 {[%clk 0:00:28.3]} 26. Bxd6 {[%clk 0:01:49.4]}
26... Qg5 {[%clk 0:00:28.5]} 27. Bxf8 {[%clk 0:01:47.4]} 27... Rxf8 {[%clk
0:00:27.2]} 28. Qxe4 {[%clk 0:01:45.5]} 28... Ndf6 {[%clk 0:00:22.7]} 29. Qe5
{[%clk 0:01:44.9]} 29... Qg6 {[%clk 0:00:22.1]} 30. Rcd1 {[%clk 0:01:34.4]}
30... g3 {[%clk 0:00:22.2]} 31. fxg3 {[%clk 0:01:27.6]} 31... hxg3 {[%clk
0:00:20.9]} 32. Bd3 {[%clk 0:01:25.9]} 32... Qh6 {[%clk 0:00:20.9]} 33. Ne2
{[%clk 0:01:12.3]} 33... Ng4 {[%clk 0:00:20.8]} 34. Qe7 {[%clk 0:01:03]} 34...
Nhf6 {[%clk 0:00:20.3]} 35. Kf1 {[%clk 0:00:58.2]} 35... Qh1+ {[%clk 0:00:18]}
36. Ng1 {[%clk 0:00:57.7]} 36... Nh2+ {[%clk 0:00:18.9]} 37. Ke2 {[%clk
0:00:57.5]} 37... Qxg2# {[%clk 0:00:19.8]} 0-1